Workbook

Sheet Input_data
B2: Self and transfer impedances of lossless parallel conductive plates with one capacitor
C4: Parallel-plate | E4: Capacitor | F4: C [F] | G4: test | I4: Simulation
C5: input data: | F5: 1e-05 | G5: point | I5: parameters:
B6: #X_cells | C6: unit [in m] | D6: plane sep | E6: x1_node | F6: R [ohm] | G6: x2_node | H6: F_min | I6: m_max | J6: Frequency | K6: Fr_mmax
B7: 10 | C7: 0.0254 | D7: 0.03 | E7: 6 | F7: 0.001 | G7: 11 | H7: 1000000 | I7: 10 | J7: 10000000 | K7: =2*m_max*300000000/(x_cells_*cell_size_*unit_length*SQRT(eps_rel)) -> 1.089603789e+10
B8: #Y_cells | C8: cell-size | D8: eps. rel. | E8: y1_node | F8: L [H] | G8: y2_node | H8: F_max | I8: n_max | J8: F_steps | K8: Fr_nmax
B9: 10 | C9: 1 | D9: 4.7 | E9: 6 | F9: 1e-10 | G9: 11 | H9: 10000000 | I9: 10 | J9: 50 | K9: =2*n_max*300000000/(y_cells_*cell_size_*unit_length*SQRT(eps_rel)) -> 1.089603789e+10
D62: C_plane [F]
D63: =0.00000000000885*eps_rel*x_cells_*cell_size_*y_cells_*cell_size_*unit_length/plane_sep -> 3.52171e-09
D64: L_plane [H] | E64: Z_plane
D65: =4*3.1415*0.0000001*plane_sep*unit_length -> 9.575292e-10 | E65: =SQRT(L_plane/C_plane) -> 0.5214338466
D66: R_plane | E66: RED DOT
B67: incr | D67: 0.003 | E67: =J7 -> 10000000
B68: =10^(LOG(F_max_/F_min_)/99) -> 1.023531022 | E68: =Z_plane -> 0.5214338466
A70: n | B70: Frequency | C70: Zcmag | D70: Zplane-mag
A71: 1 | B71: =F_min_*incr_^(A71-1) -> 1000000 | C71: =SQRT(R_^2+(2*PI()*B71*L_-1/(2*PI()*B71*Cap_))^2) -> 0.01531984802 | D71: =SQRT(R_plane^2+(2*PI()*B71*L_plane-1/(2*PI()*B71*C_plane))^2) -> 45.18650192 | E71: =Z_plane -> 0.5214338466
A72: 2 | B72: =F_min_*incr_^(A72-1) -> 1023531.022 | C72: =SQRT(R_^2+(2*PI()*B72*L_-1/(2*PI()*B72*Cap_))^2) -> 0.01493999768 | D72: =SQRT(R_plane^2+(2*PI()*B72*L_plane-1/(2*PI()*B72*C_plane))^2) -> 44.14738243 | E72: =Z_plane -> 0.5214338466
A73: 3 | B73: 1047615.753 | C73: 0.01456823591 | D73: 43.13214575 | E73: 0.5214338466
A74: 4 | B74: 1072267.222 | C74: 0.01420436207 | D74: 42.14024267 | E74: 0.5214338466
A75: 5 | B75: 1097498.765 | C75: 0.01384817987 | D75: 41.17113658 | E75: 0.5214338466
A76: 6 | B76: 1123324.033 | C76: 0.01349949719 | D76: 40.22430323 | E76: 0.5214338466
A77: 7 | B77: 1149756.995 | C77: 0.01315812604 | D77: 39.29923038 | E77: 0.5214338466
A78: 8 | B78: 1176811.952 | C78: 0.01282388242 | D78: 38.3954176 | E78: 0.5214338466
A79: 9 | B79: 1204503.54 | C79: 0.01249658627 | D79: 37.51237594 | E79: 0.5214338466
A80: 10 | B80: 1232846.739 | C80: 0.01217606133 | D80: 36.6496277 | E80: 0.5214338466
A81: 11 | B81: 1261856.883 | C81: 0.01186213508 | D81: 35.80670614 | E81: 0.5214338466 | G81: 0.01957622654 | H81: 0.01957332947 | I81: 0.01962022178 | J81: 0.01978793142 | K81: 0.02029578218 | L81: 0.0214912056 | M81: 0.0223447303 | N81: 0.02369639139 | O81: 0.02498681496 | P81: 0.02601430761 | Q81: 0.02710898697
A82: 12 | B82: 1291549.665 | C82: 0.01155463865 | D82: 34.98315527 | E82: 0.5214338466 | G82: 0.01957332947 | H82: 0.01956395347 | I82: 0.01954717023 | J82: 0.01965957718 | K82: 0.01999371913 | L82: 0.02048497135 | M82: 0.02214682931 | N82: 0.02375029238 | O82: 0.02520124762 | P82: 0.02608928005 | Q82: 0.0256796648
A83: 13 | B83: 1321941.148 | C83: 0.01125340671 | D83: 34.17852955 | E83: 0.5214338466 | G83: 0.01962022178 | H83: 0.01954717023 | I83: 0.01938758952 | J83: 0.01922002431 | K83: 0.01939414332 | L83: 0.02052715002 | M83: 0.02185347588 | N83: 0.02391492278 | O83: 0.02584678057 | P83: 0.02728000241 | Q83: 0.02850938607
A84: 14 | B84: 1353047.775 | C84: 0.01095827745 | D84: 33.39239371 | E84: 0.5214338466 | G84: 0.01978793142 | H84: 0.01965957718 | I84: 0.01922002431 | J84: 0.01856071118 | K84: 0.01791836068 | L84: 0.01818705999 | M84: 0.02092606547 | N84: 0.02429475309 | O84: 0.02716522023 | P84: 0.02891124142 | Q84: 0.02878516027
A85: 15 | B85: 1384886.371 | C85: 0.01066909244 | D85: 32.62432246 | E85: 0.5214338466 | G85: 0.02029578218 | H85: 0.01999371913 | I85: 0.01939414332 | J85: 0.01791836068 | K85: 0.01547901212 | L85: 0.01413616835 | M85: 0.0193021238 | N85: 0.02525290467 | O85: 0.02956307916 | P85: 0.03215312719 | Q85: 0.03384658639
A86: 16 | B86: 1417474.163 | C86: 0.01038569656 | D86: 31.87390029 | E86: 0.5214338466 | G86: 0.0214912056 | H86: 0.02048497135 | I86: 0.02052715002 | J86: 0.01818705999 | K86: 0.01413616835 | L86: 0.0048283485 | M86: 0.01910353509 | N86: 0.02776018938 | O86: 0.03394654899 | P86: 0.03637807918 | Q86: 0.03759311828
A87: 17 | B87: 1450828.778 | C87: 0.01010793797 | D87: 31.14072124 | E87: 0.5214338466 | G87: 0.0223447303 | H87: 0.02214682931 | I87: 0.02185347588 | J87: 0.02092606547 | K87: 0.0193021238 | L87: 0.01910353509 | M87: 0.02576439538 | N87: 0.03352416513 | O87: 0.03973825487 | P87: 0.04385757084 | Q87: 0.04608569181
A88: 18 | B88: 1484968.262 | C88: 0.009835668012 | D88: 30.42438867 | E88: 0.5214338466 | G88: 0.02369639139 | H88: 0.02375029238 | I88: 0.02391492278 | J88: 0.02429475309 | K88: 0.02525290467 | L88: 0.02776018938 | M88: 0.03352416513 | N88: 0.04068537768 | O88: 0.04784102818 | P88: 0.05341335919 | Q88: 0.05507570356
A89: 19 | B89: 1519911.083 | C89: 0.009568741131 | D89: 29.72451506 | E89: 0.5214338466 | G89: 0.02498681496 | H89: 0.02520124762 | I89: 0.02584678057 | J89: 0.02716522023 | K89: 0.02956307916 | L89: 0.03394654899 | M89: 0.03973825487 | N89: 0.04784102818 | O89: 0.05734839442 | P89: 0.06659046848 | Q89: 0.07120548627
A90: 20 | B90: 1555676.144 | C90: 0.009307014835 | D90: 29.04072179 | E90: 0.5214338466 | G90: 0.02601430761 | H90: 0.02608928005 | I90: 0.02728000241 | J90: 0.02891124142 | K90: 0.03215312719 | L90: 0.03637807918 | M90: 0.04385757084 | N90: 0.05341335919 | O90: 0.06659046848 | P90: 0.08457215988 | Q90: 0.09835954409
A91: 21 | B91: 1592282.793 | C91: 0.009050349629 | D91: 28.37263895 | E91: 0.5214338466 | G91: 0.02710898697 | H91: 0.0256796648 | I91: 0.02850938607 | J91: 0.02878516027 | K91: 0.03384658639 | L91: 0.03759311828 | M91: 0.04608569181 | N91: 0.05507570356 | O91: 0.07120548627 | P91: 0.09835954409 | Q91: 0.1429917675
A92: 22 | B92: 1629750.835 | C92: 0.008798608952 | D92: 27.71990512 | E92: 0.5214338466
A93: 23 | B93: 1668100.537 | C93: 0.008551659136 | D93: 27.08216718 | E93: 0.5214338466
A94: 24 | B94: 1707352.647 | C94: 0.008309369348 | D94: 26.45908013 | E94: 0.5214338466
A95: 25 | B95: 1747528.4 | C95: 0.008071611555 | D95: 25.85030689 | E95: 0.5214338466
A96: 26 | B96: 1788649.529 | C96: 0.007838260486 | D96: 25.25551813 | E96: 0.5214338466
A97: 27 | B97: 1830738.28 | C97: 0.007609193596 | D97: 24.67439208 | E97: 0.5214338466
A98: 28 | B98: 1873817.423 | C98: 0.007384291046 | D98: 24.10661436 | E98: 0.5214338466
A99: 29 | B99: 1917910.262 | C99: 0.007163435682 | D99: 23.55187782 | E99: 0.5214338466
A100: 30 | B100: 1963040.65 | C100: 0.00694651303 | D100: 23.00988236 | E100: 0.5214338466
A101: 31 | B101: 2009233.003 | C101: 0.006733411292 | D101: 22.48033476 | E101: 0.5214338466 | G101: 0.1429917675 | H101: 0.1071747574 | I101: 0.0941741957 | J101: 0.08711213053 | K101: 0.08311447811 | L101: 0.08261550868 | M101: 0.08311447811 | N101: 0.08711213053 | O101: 0.0941741957 | P101: 0.1071747574 | Q101: 0.1429917675
A102: 32 | B102: 2056512.308 | C102: 0.006524021357 | D102: 21.96294856 | E102: 0.5214338466 | G102: 0.1071747574 | H102: 0.08568766015 | I102: 0.07485802517 | J102: 0.06792651191 | K102: 0.06389069348 | L102: 0.06171869537 | M102: 0.06389069348 | N102: 0.06792651191 | O102: 0.07485802517 | P102: 0.08568766015 | Q102: 0.1071747574
A103: 33 | B103: 2104904.145 | C103: 0.006318236828 | D103: 21.45744385 | E103: 0.5214338466 | G103: 0.0941741957 | H103: 0.07485802517 | I103: 0.06551974605 | J103: 0.05900373129 | K103: 0.0545754295 | L103: 0.0537110318 | M103: 0.0545754295 | N103: 0.05900373129 | O103: 0.06551974605 | P103: 0.07485802517 | Q103: 0.0941741957
A104: 34 | B104: 2154434.69 | C104: 0.006115954058 | D104: 20.96354718 | E104: 0.5214338466 | G104: 0.08711213053 | H104: 0.06792651191 | I104: 0.05900373129 | J104: 0.05166165861 | K104: 0.04575630314 | L104: 0.04255064488 | M104: 0.04575630314 | N104: 0.05166165861 | O104: 0.05900373129 | P104: 0.06792651191 | Q104: 0.08711213054
A105: 35 | B105: 2205130.74 | C105: 0.005917072204 | D105: 20.48099135 | E105: 0.5214338466 | G105: 0.08311447811 | H105: 0.06389069348 | I105: 0.0545754295 | J105: 0.04575630314 | K105: 0.03568191706 | L105: 0.02878817496 | M105: 0.03568191706 | N105: 0.04575630314 | O105: 0.0545754295 | P105: 0.06389069348 | Q105: 0.08311447811
A106: 36 | B106: 2257019.72 | C106: 0.005721493304 | D106: 20.00951531 | E106: 0.5214338466 | G106: 0.08261550868 | H106: 0.06171869537 | I106: 0.0537110318 | J106: 0.04255064488 | K106: 0.02878817496 | L106: 0.004802033577 | M106: 0.02878817496 | N106: 0.04255064488 | O106: 0.0537110318 | P106: 0.06171869537 | Q106: 0.08261550868
A107: 37 | B107: 2310129.7 | C107: 0.005529122373 | D107: 19.548864 | E107: 0.5214338466 | G107: 0.08311447811 | H107: 0.06389069348 | I107: 0.0545754295 | J107: 0.04575630314 | K107: 0.03568191706 | L107: 0.02878817496 | M107: 0.03568191706 | N107: 0.04575630314 | O107: 0.0545754295 | P107: 0.06389069348 | Q107: 0.08311447811
A108: 38 | B108: 2364489.413 | C108: 0.00533986753 | D108: 19.09878821 | E108: 0.5214338466 | G108: 0.08711213053 | H108: 0.06792651191 | I108: 0.05900373129 | J108: 0.05166165861 | K108: 0.04575630314 | L108: 0.04255064488 | M108: 0.04575630314 | N108: 0.05166165861 | O108: 0.05900373129 | P108: 0.06792651191 | Q108: 0.08711213054
A109: 39 | B109: 2420128.265 | C109: 0.005153640162 | D109: 18.65904448 | E109: 0.5214338466 | G109: 0.0941741957 | H109: 0.07485802517 | I109: 0.06551974605 | J109: 0.05900373129 | K109: 0.0545754295 | L109: 0.0537110318 | M109: 0.0545754295 | N109: 0.05900373129 | O109: 0.06551974605 | P109: 0.07485802517 | Q109: 0.0941741957
A110: 40 | B110: 2477076.356 | C110: 0.004970355118 | D110: 18.2293949 | E110: 0.5214338466 | G110: 0.1071747574 | H110: 0.08568766015 | I110: 0.07485802517 | J110: 0.06792651191 | K110: 0.06389069348 | L110: 0.06171869537 | M110: 0.06389069348 | N110: 0.06792651191 | O110: 0.07485802517 | P110: 0.08568766015 | Q110: 0.1071747574
A111: 41 | B111: 2535364.494 | C111: 0.004789930962 | D111: 17.80960705 | E111: 0.5214338466 | G111: 0.1429917675 | H111: 0.1071747574 | I111: 0.0941741957 | J111: 0.08711213054 | K111: 0.08311447811 | L111: 0.08261550868 | M111: 0.08311447811 | N111: 0.08711213054 | O111: 0.0941741957 | P111: 0.1071747574 | Q111: 0.1429917675
A112: 42 | B112: 2595024.211 | C112: 0.004612290279 | D112: 17.39945382 | E112: 0.5214338466
A113: 43 | B113: 2656087.783 | C113: 0.004437360061 | D113: 16.99871333 | E113: 0.5214338466
A114: 44 | B114: 2718588.243 | C114: 0.004265072171 | D114: 16.6071688 | E114: 0.5214338466
A115: 45 | B115: 2782559.402 | C115: 0.004095363927 | D115: 16.22460839 | E115: 0.5214338466
A116: 46 | B116: 2848035.868 | C116: 0.003928178826 | D116: 15.85082517 | E116: 0.5214338466
A117: 47 | B117: 2915053.063 | C117: 0.003763467429 | D117: 15.48561691 | E117: 0.5214338466
A118: 48 | B118: 2983647.24 | C118: 0.003601188477 | D118: 15.12878604 | E118: 0.5214338466
A119: 49 | B119: 3053855.509 | C119: 0.003441310284 | D119: 14.78013954 | E119: 0.5214338466
A120: 50 | B120: 3125715.85 | C120: 0.003283812475 | D120: 14.43948878 | E120: 0.5214338466
A121: 51 | B121: 3199267.138 | C121: 0.003128688198 | D121: 14.10664949 | E121: 0.5214338466
A122: 52 | B122: 3274549.163 | C122: 0.002975946918 | D122: 13.7814416 | E122: 0.5214338466
A123: 53 | B123: 3351602.651 | C123: 0.002825617997 | D123: 13.46368918 | E123: 0.5214338466
A124: 54 | B124: 3430469.286 | C124: 0.002677755282 | D124: 13.15322034 | E124: 0.5214338466
A125: 55 | B125: 3511191.734 | C125: 0.002532443051 | D125: 12.84986712 | E125: 0.5214338466
A126: 56 | B126: 3593813.664 | C126: 0.002389803736 | D126: 12.55346541 | E126: 0.5214338466
A127: 57 | B127: 3678379.772 | C127: 0.002250008026 | D127: 12.26385486 | E127: 0.5214338466
A128: 58 | B128: 3764935.807 | C128: 0.002113288127 | D128: 11.9808788 | E128: 0.5214338466
A129: 59 | B129: 3853528.594 | C129: 0.001979955203 | D129: 11.70438415 | E129: 0.5214338466
A130: 60 | B130: 3944206.059 | C130: 0.001850422294 | D130: 11.43422133 | E130: 0.5214338466
A131: 61 | B131: 4037017.259 | C131: 0.001725234215 | D131: 11.17024418 | E131: 0.5214338466
A132: 62 | B132: 4132012.4 | C132: 0.001605105956 | D132: 10.9123099 | E132: 0.5214338466
A133: 63 | B133: 4229242.874 | C133: 0.001490970468 | D133: 10.66027896 | E133: 0.5214338466
A134: 64 | B134: 4328761.281 | C134: 0.001384034589 | D134: 10.414015 | E134: 0.5214338466
A135: 65 | B135: 4430621.458 | C135: 0.001285836766 | D135: 10.17338481 | E135: 0.5214338466
A136: 66 | B136: =F_min_*incr_^(A136-1) -> 4534878.508 | C136: =SQRT(R_^2+(2*PI()*B136*L_-1/(2*PI()*B136*Cap_))^2) -> 0.001198289975 | D136: =SQRT(R_plane^2+(2*PI()*B136*L_plane-1/(2*PI()*B136*C_plane))^2) -> 9.93825821 | E136: =Z_plane -> 0.5214338466
A137: 67 | B137: 4641588.834 | C137: 0.001123676601 | D137: 9.708508001 | E137: 0.5214338466
A138: 68 | B138: 4750810.162 | C138: 0.001064543077 | D138: 9.484009892 | E138: 0.5214338466
A139: 69 | B139: 4862601.58 | C139: 0.001023439004 | D139: 9.264642435 | E139: 0.5214338466
A140: 70 | B140: 4977023.564 | C140: 0.001002491724 | D140: 9.050286958 | E140: 0.5214338466
A141: 71 | B141: 5094138.015 | C141: 0.001002919194 | D141: 8.840827497 | E141: 0.5214338466
A142: 72 | B142: 5214008.288 | C142: 0.001024695566 | D142: 8.63615074 | E142: 0.5214338466
A143: 73 | B143: 5336699.231 | C143: 0.001066558718 | D143: 8.436145961 | E143: 0.5214338466
A144: 74 | B144: 5462277.218 | C144: 0.001126355124 | D144: 8.240704961 | E144: 0.5214338466
A145: 75 | B145: 5590810.183 | C145: 0.001201528149 | D145: 8.049722011 | E145: 0.5214338466
A146: 76 | B146: 5722367.659 | C146: 0.001289538019 | D146: 7.863093794 | E146: 0.5214338466
A147: 77 | B147: 5857020.818 | C147: 0.001388115836 | D147: 7.680719347 | E147: 0.5214338466
A148: 78 | B148: 5994842.503 | C148: 0.001495363824 | D148: 7.502500009 | E148: 0.5214338466
A149: 79 | B149: 6135907.273 | C149: 0.001609757669 | D149: 7.328339367 | E149: 0.5214338466
A150: 80 | B150: 6280291.442 | C150: 0.001730102506 | D150: 7.158143205 | E150: 0.5214338466
A151: 81 | B151: 6428073.117 | C151: 0.001855475038 | D151: 6.99181945 | E151: 0.5214338466
A152: 82 | B152: 6579332.247 | C152: 0.001985167863 | D152: 6.829278123 | E152: 0.5214338466
A153: 83 | B153: 6734150.658 | C153: 0.002118642058 | D153: 6.670431293 | E153: 0.5214338466
A154: 84 | B154: 6892612.104 | C154: 0.002255489135 | D154: 6.515193029 | E154: 0.5214338466
A155: 85 | B155: 7054802.311 | C155: 0.002395401453 | D155: 6.363479348 | E155: 0.5214338466
A156: 86 | B156: 7220809.018 | C156: 0.002538149543 | D156: 6.215208177 | E156: 0.5214338466
A157: 87 | B157: 7390722.034 | C157: 0.002683564858 | D157: 6.070299304 | E157: 0.5214338466
A158: 88 | B158: 7564633.276 | C158: 0.002831526649 | D158: 5.928674338 | E158: 0.5214338466
A159: 89 | B159: 7742636.827 | C159: 0.002981951979 | D159: 5.79025666 | E159: 0.5214338466
A160: 90 | B160: 7924828.984 | C160: 0.003134788072 | D160: 5.654971391 | E160: 0.5214338466
A161: 91 | B161: 8111308.308 | C161: 0.003290006436 | D161: 5.522745344 | E161: 0.5214338466
A162: 92 | B162: 8302175.681 | C162: 0.003447598314 | D162: 5.393506988 | E162: 0.5214338466
A163: 93 | B163: 8497534.359 | C163: 0.003607571142 | D163: 5.267186406 | E163: 0.5214338466
A164: 94 | B164: 8697490.026 | C164: 0.003769945781 | D164: 5.143715263 | E164: 0.5214338466
A165: 95 | B165: 8902150.854 | C165: 0.003934754329 | D165: 5.023026763 | E165: 0.5214338466
A166: 96 | B166: 9111627.561 | C166: 0.004102038392 | D166: 4.905055616 | E166: 0.5214338466
A167: 97 | B167: 9326033.469 | C167: 0.004271847707 | D167: 4.789738002 | E167: 0.5214338466
A168: 98 | B168: 9545484.567 | C168: 0.00444423904 | D168: 4.677011537 | E168: 0.5214338466
A169: 99 | B169: 9770099.573 | C169: 0.0046192753 | D169: 4.566815237 | E169: 0.5214338466
A170: 100 | B170: 10000000 | C170: 0.004797024827 | D170: 4.45908949 | E170: 0.5214338466

Sheet Info
B1: File: Caprange_sweep_v05-ExcelWin2016.xlsm For updates and with comments contact:
B6: Application information and hints:
B7: 1., Enter your data in the top grey highlighted area of worksheet. Select any of the red parameters and enter your data in the units shown. Be careful with n_max and m_max: large numbers may result in slow sweep. Small limits, however, may be in conflict with the requested upper frequency range of simulation. The speed of sweep can also be adjusted by lowering the number of sweep steps (Fsteps input field).
B8: 2., Blue numbers are calculated output data. Do not overwrite them unless you understand its consequences in the spreadsheet.
B9: 3., Graph updates can be called up and run either from the Tools/Macro drop-down Excel menu or by clicking on the "Sweep frequency" button.
B10: 4., Please note that there is only a minimal error checking of your entered input data.
B11: 5., For explanatory information, see the worksheet "Reference". For suggested input data to look at, use the Workgroup Scenario items.
B12: 6., If Automatic Recalculation is selected in the Tools/Options menu, numerical and graphical outputs are automatically updated after each new entry.
B13: 7., On slower computers, deselect Automatic Recalculation, and use Calc. Now (F9).
B14: 8., This file uses dot (.) as separator between the integer and fractional parts of numbers. Preferences in your Microsoft Excel installation must be set accordingly.
B15: 9., The calculation part of the worksheets can be viewed and changed if necessary below the input/output areas. To navigate among cells, you can switch back on the Row and Column Headers and Scroll bars in the Advanced Options >> Display menu.
B16: 10., This worksheet has been tested on Windows 10 with 64-bit Excel 2016.

Sheet Reference
D3: Perspective view of planes:
C15: Top view of planes with location of connection points:
C30: Expressions used:
C47: Reference:
B48: K. R. Carver, J. W. Mink, "Microstrip antenna technology," IEEE Transactions on Antennas and Propagation, AP-29, 1981, pp. 2-24.
B50: Notes:
B51: Plane size and location coordinates are discretized. Coordinate = (node - 1) * cell_size
B52: With #X_cells and #Y_cells, the nodes are numbered 1 through (#X_cells+1) in the x direction, and 1 through (#Y_cells+1) in the y direction.
B53: On the impedance-surface charts, the lower front corner corresponds to x=0, y=0 (x_node=1, y_node=1).
B54: Left axis of surface charts is x direction, right axis is y direction.
B55: Example:
B56: A test point at x=1.5" y=3" on a plane of size X=10" Y=8" can be simulated with one inch unit, 0.5" cell size, so that you enter
B57: unit=0.0254, cell_size= 0.5, #X_cells=20, #Y_cells=16, x1_node=4, y1_node=7
B60: The Fr_mmax and Fr_nmax fields show the frequencies of highest modal resonance peaks included in the double modal summation.
B61: The F_max upper limit of frequency sweep should be less than min{Fr_mmax, Fr_nmax}
B62: Large m_max and n_max limits result in long run times. Use the lowest summation limits that still cover the required frequency range.
B64: The upper right-hand chart shows the impedance magnitude of the capacitor (blue trace), approximate impedance magnitude of the plane
B65: (green trace), and the equivalent characteristic impedance of the planes as a red trace (sqrt(L_plane/C_plane) with a large red dot as
B66: the progress indicator.
B67: The plane impedance is approximated from the static plane capacitance, L_plane=mu_o*plane_sep average plane inductance, and an
B68: assumed 3 milliohms plane resistance. This approximation uses a simple C-R-L model, no cavity resonances are shown.

Sheet Copyright
B2: This toolset is copyright, Istvan Novak, 2004 - 2019. All rights reserved. You are hereby granted a limited right to run, copy, and reproduce the toolset for your personal, non-commercial purposes only. By using the file(s), you acknowledge not to run, show or disseminate in any way the toolset in full or in part at public or commercial presentations without the express written consent of the author.
